[Event "Titled Tuesday Blitz May 2 Late 2023"]
[White "Grigorov, Grigor"]
[Black "Hakobyan, Aram"]
[WhiteFideId "2907313"]
[BlackFideId "13306677"]
[WhiteElo "2510"]
[BlackElo "2584"]
[Result "0-1"]
[Round "04"]
[TimeControl "180+2"]
[Date "2023.05.02"]
[WhiteClock "0:00:05"]
[BlackClock "0:00:16"]

1. d4 {[%clk 0:03:00]}  Nf6 {[%clk 0:03:00]} 2. Nf3 {[%clk 0:02:59]}  d5 {[%clk 0:03:00]} 3. c4 {[%clk 0:02:58]}  e6 {[%clk 0:03:00]} 4. g3 {[%clk 0:02:58]}  Be7 {[%clk 0:02:58]} 5. Bg2 {[%clk 0:02:58]}  O-O {[%clk 0:02:59]} 6. O-O {[%clk 0:02:58]}  c6 {[%clk 0:02:59]} 7. Qc2 {[%clk 0:02:57]}  Nbd7 {[%clk 0:02:55]} 8. Nbd2 {[%clk 0:02:56]}  c5 {[%clk 0:02:50]} 9. cxd5 {[%clk 0:02:42]}  exd5 {[%clk 0:02:49]} 10. dxc5 {[%clk 0:02:41]}  Nxc5 {[%clk 0:02:50]} 11. Nb3 {[%clk 0:02:37]}  Nce4 {[%clk 0:02:49]} 12. Nbd4 {[%clk 0:02:34]}  Bg4 {[%clk 0:02:46]} 13. Be3 {[%clk 0:02:34]}  Rc8 {[%clk 0:02:43]} 14. Qb3 {[%clk 0:02:31]}  Nc5 {[%clk 0:02:42]} 15. Qd1 {[%clk 0:02:26]}  Bd6 {[%clk 0:02:32]} 16. Nb5 {[%clk 0:02:16]}  Bb8 {[%clk 0:02:29]} 17. Rc1 {[%clk 0:02:12]}  b6 {[%clk 0:02:27]} 18. Bd4 {[%clk 0:02:08]}  Re8 {[%clk 0:02:16]} 19. Nc3 {[%clk 0:02:06]}  Nfe4 {[%clk 0:02:09]} 20. Re1 {[%clk 0:02:00]}  h6 {[%clk 0:02:05]} 21. Be3 {[%clk 0:01:31]}  Nf6 {[%clk 0:01:55]} 22. Bd4 {[%clk 0:01:27]}  Nfe4 {[%clk 0:01:45]} 23. Be3 {[%clk 0:01:25]}  Nxc3 {[%clk 0:01:37]} 24. Rxc3 {[%clk 0:01:25]}  Be6 {[%clk 0:01:29]} 25. Bd4 {[%clk 0:01:24]}  Bd6 {[%clk 0:01:25]} 26. Qc2 {[%clk 0:01:16]}  Ne4 {[%clk 0:01:21]} 27. Rxc8 {[%clk 0:01:15]}  Qxc8 {[%clk 0:01:22]} 28. Qxc8 {[%clk 0:01:15]}  Rxc8 {[%clk 0:01:21]} 29. Rd1 {[%clk 0:00:58]}  Rc2 {[%clk 0:01:19]} 30. Bf1 {[%clk 0:00:54]}  f6 {[%clk 0:01:14]} 31. Ne1 {[%clk 0:00:53]}  Rc8 {[%clk 0:01:10]} 32. Nd3 {[%clk 0:00:53]}  Kf7 {[%clk 0:01:07]} 33. Rc1 {[%clk 0:00:44]}  Rxc1 {[%clk 0:01:05]} 34. Nxc1 {[%clk 0:00:45]}  Bc5 {[%clk 0:01:06]} 35. Nb3 {[%clk 0:00:44]}  Bd6 {[%clk 0:00:54]} 36. f3 {[%clk 0:00:34]}  Nc5 {[%clk 0:00:52]} 37. Nd2 {[%clk 0:00:33]}  Bf5 {[%clk 0:00:48]} 38. Kf2 {[%clk 0:00:32]}  Ne6 {[%clk 0:00:46]} 39. Nb3 {[%clk 0:00:20]}  Bb1 {[%clk 0:00:43]} 40. e3 {[%clk 0:00:14]}  Bxa2 {[%clk 0:00:43]} 41. Nc1 {[%clk 0:00:14]}  Bc4 {[%clk 0:00:39]} 42. Bh3 {[%clk 0:00:13]}  Nxd4 {[%clk 0:00:39]} 43. exd4 {[%clk 0:00:13]}  a5 {[%clk 0:00:35]} 44. b3 {[%clk 0:00:13]}  Bb5 {[%clk 0:00:32]} 45. Ke3 {[%clk 0:00:13]}  Ba3 {[%clk 0:00:31]} 46. Ne2 {[%clk 0:00:13]}  g5 {[%clk 0:00:27]} 47. Nc3 {[%clk 0:00:11]}  Bc6 {[%clk 0:00:25]} 48. Bf5 {[%clk 0:00:11]}  Ke7 {[%clk 0:00:21]} 49. Kd3 {[%clk 0:00:11]}  b5 {[%clk 0:00:19]} 50. g4 {[%clk 0:00:10]}  Bd6 {[%clk 0:00:17]} 51. h3 {[%clk 0:00:10]}  a4 {[%clk 0:00:18]} 52. bxa4 {[%clk 0:00:09]}  bxa4 {[%clk 0:00:19]} 53. Kc2 {[%clk 0:00:10]}  Bb4 {[%clk 0:00:19]} 54. Na2 {[%clk 0:00:09]}  Ba5 {[%clk 0:00:17]} 55. Bh7 {[%clk 0:00:08]}  Kd6 {[%clk 0:00:18]} 56. Bf5 {[%clk 0:00:07]}  Bb5 {[%clk 0:00:18]} 57. Bg6 {[%clk 0:00:06]}  Bc4 {[%clk 0:00:17]} 58. Nc3 {[%clk 0:00:06]}  Bxc3 {[%clk 0:00:18]} 59. Kxc3 {[%clk 0:00:07]}  a3 {[%clk 0:00:18]} 60. Bc2 {[%clk 0:00:05]}  Be2 {[%clk 0:00:16]} 0-1


[Site "https://www.chess.com"]

[Event "Titled Tuesday Blitz May 2 Late 2023"]
[White "Sargsyan, Shant"]
[Black "Sieciechowicz, Marcin"]
[WhiteFideId "13306766"]
[BlackFideId "1130170"]
[WhiteElo "2628"]
[BlackElo "2302"]
[Result "0-1"]
[Round "04"]
[TimeControl "180+2"]
[Date "2023.05.02"]
[WhiteClock "0:00:02"]
[BlackClock "0:00:07"]

1. g3 {[%clk 0:03:00]}  Nf6 {[%clk 0:02:58]} 2. c4 {[%clk 0:03:00]}  c6 {[%clk 0:02:57]} 3. Nf3 {[%clk 0:02:59]}  d5 {[%clk 0:02:58]} 4. Bg2 {[%clk 0:03:00]}  Bf5 {[%clk 0:02:58]} 5. Qb3 {[%clk 0:02:58]}  Qb6 {[%clk 0:02:57]} 6. O-O {[%clk 0:02:58]}  e6 {[%clk 0:02:56]} 7. d3 {[%clk 0:02:59]}  Nbd7 {[%clk 0:02:55]} 8. Nc3 {[%clk 0:02:59]}  h6 {[%clk 0:02:52]} 9. cxd5 {[%clk 0:02:59]}  Qxb3 {[%clk 0:02:51]} 10. axb3 {[%clk 0:02:59]}  exd5 {[%clk 0:02:50]} 11. e4 {[%clk 0:02:57]}  dxe4 {[%clk 0:02:48]} 12. dxe4 {[%clk 0:02:58]}  Be6 {[%clk 0:02:47]} 13. Nd4 {[%clk 0:02:56]}  Bc5 {[%clk 0:02:28]} 14. Be3 {[%clk 0:02:48]}  Ng4 {[%clk 0:01:33]} 15. Nxe6 {[%clk 0:02:47]}  fxe6 {[%clk 0:01:25]} 16. Bxc5 {[%clk 0:02:31]}  Nxc5 {[%clk 0:01:25]} 17. b4 {[%clk 0:02:30]}  Nd3 {[%clk 0:01:26]} 18. b5 {[%clk 0:02:28]}  O-O {[%clk 0:01:01]} 19. bxc6 {[%clk 0:02:24]}  bxc6 {[%clk 0:01:02]} 20. Nd1 {[%clk 0:02:24]}  Rfb8 {[%clk 0:00:50]} 21. h3 {[%clk 0:02:19]}  Nf6 {[%clk 0:00:42]} 22. e5 {[%clk 0:02:16]}  Nd5 {[%clk 0:00:37]} 23. Ra3 {[%clk 0:02:10]}  Nxb2 {[%clk 0:00:34]} 24. Nxb2 {[%clk 0:02:11]}  Rxb2 {[%clk 0:00:34]} 25. Rc1 {[%clk 0:02:12]}  Rb6 {[%clk 0:00:31]} 26. f4 {[%clk 0:02:11]}  a5 {[%clk 0:00:29]} 27. f5 {[%clk 0:02:09]}  Kf7 {[%clk 0:00:26]} 28. Ra4 {[%clk 0:01:37]}  Rb4 {[%clk 0:00:14]} 29. fxe6+ {[%clk 0:01:33]}  Ke7 {[%clk 0:00:14]} 30. Raa1 {[%clk 0:01:31]}  Rb6 {[%clk 0:00:09]} 31. Bxd5 {[%clk 0:01:11]}  cxd5 {[%clk 0:00:09]} 32. Rc7+ {[%clk 0:01:12]}  Kxe6 {[%clk 0:00:09]} 33. Rxg7 {[%clk 0:01:13]}  Kxe5 {[%clk 0:00:09]} 34. Re1+ {[%clk 0:01:12]}  Kd4 {[%clk 0:00:09]} 35. Rg4+ {[%clk 0:01:10]}  Kd3 {[%clk 0:00:09]} 36. Rd1+ {[%clk 0:01:09]}  Ke3 {[%clk 0:00:09]} 37. Rgd4 {[%clk 0:01:06]}  a4 {[%clk 0:00:07]} 38. Rxd5 {[%clk 0:01:02]}  Ke4 {[%clk 0:00:06]} 39. R1d4+ {[%clk 0:00:43]}  Ke3 {[%clk 0:00:06]} 40. Rd3+ {[%clk 0:00:38]}  Ke4 {[%clk 0:00:06]} 41. R3d4+ {[%clk 0:00:20]}  Ke3 {[%clk 0:00:06]} 42. g4 {[%clk 0:00:11]}  a3 {[%clk 0:00:05]} 43. Rd3+ {[%clk 0:00:11]}  Ke4 {[%clk 0:00:05]} 44. R5d4+ {[%clk 0:00:10]}  Ke5 {[%clk 0:00:05]} 45. Rd5+ {[%clk 0:00:10]}  Ke6 {[%clk 0:00:05]} 46. Rh5 {[%clk 0:00:10]}  a2 {[%clk 0:00:05]} 47. Rxh6+ {[%clk 0:00:09]}  Ke5 {[%clk 0:00:05]} 48. Rxb6 {[%clk 0:00:06]}  a1=Q+ {[%clk 0:00:05]} 49. Kg2 {[%clk 0:00:06]}  Ra2+ {[%clk 0:00:06]} 50. Kg3 {[%clk 0:00:02]}  Qg1+ {[%clk 0:00:05]} 51. Kh4 {[%clk 0:00:03]}  Qxb6 {[%clk 0:00:05]} 52. Rf3 {[%clk 0:00:03]}  Ke4 {[%clk 0:00:05]} 53. Rf5 {[%clk 0:00:03]}  Qd8+ {[%clk 0:00:05]} 54. Kh5 {[%clk 0:00:03]}  Ra5 {[%clk 0:00:06]} 55. Rxa5 {[%clk 0:00:01]}  Qxa5+ {[%clk 0:00:06]} 56. Kg6 {[%clk 0:00:02]}  Kf4 {[%clk 0:00:07]} 0-1


[Site "https://www.chess.com"]

[Event "Titled Tuesday Blitz May 2 Late 2023"]
[White "Henriquez Villagra, Cristobal"]
[Black "Prohaszka, Peter"]
[WhiteFideId "3409350"]
[BlackFideId "726265"]
[WhiteElo "2542"]
[BlackElo "2626"]
[Result "1-0"]
[Round "04"]
[TimeControl "180+2"]
[Date "2023.05.02"]
[WhiteClock "0:00:17"]
[BlackClock "0:00:04"]

1. e4 {[%clk 0:03:00]}  c6 {[%clk 0:02:49]} 2. Nf3 {[%clk 0:02:53]}  d5 {[%clk 0:02:50]} 3. exd5 {[%clk 0:02:53]}  cxd5 {[%clk 0:02:51]} 4. Ne5 {[%clk 0:02:53]}  Nf6 {[%clk 0:02:48]} 5. Bb5+ {[%clk 0:02:51]}  Nbd7 {[%clk 0:02:47]} 6. d4 {[%clk 0:02:39]}  g6 {[%clk 0:02:46]} 7. O-O {[%clk 0:02:39]}  Bg7 {[%clk 0:02:46]} 8. Re1 {[%clk 0:02:31]}  O-O {[%clk 0:02:46]} 9. c3 {[%clk 0:02:24]}  Nxe5 {[%clk 0:02:38]} 10. dxe5 {[%clk 0:02:09]}  Ng4 {[%clk 0:02:28]} 11. Qd4 {[%clk 0:02:07]}  f6 {[%clk 0:02:03]} 12. e6 {[%clk 0:02:07]}  f5 {[%clk 0:02:01]} 13. Qb4 {[%clk 0:01:48]}  Qb6 {[%clk 0:01:29]} 14. Re2 {[%clk 0:01:26]}  a5 {[%clk 0:01:12]} 15. Qa4 {[%clk 0:01:22]}  Bxe6 {[%clk 0:01:08]} 16. h3 {[%clk 0:01:16]}  Nf6 {[%clk 0:00:54]} 17. Be3 {[%clk 0:01:16]}  Qd8 {[%clk 0:00:48]} 18. Na3 {[%clk 0:01:15]}  Bf7 {[%clk 0:00:41]} 19. Bd4 {[%clk 0:01:15]}  b6 {[%clk 0:00:27]} 20. Rae1 {[%clk 0:01:12]}  e6 {[%clk 0:00:27]} 21. f3 {[%clk 0:01:07]}  Rc8 {[%clk 0:00:27]} 22. Rxe6 {[%clk 0:00:58]}  Bxe6 {[%clk 0:00:28]} 23. Rxe6 {[%clk 0:00:59]}  Nh5 {[%clk 0:00:23]} 24. Bxb6 {[%clk 0:00:53]}  Qg5 {[%clk 0:00:23]} 25. Be3 {[%clk 0:00:52]}  f4 {[%clk 0:00:18]} 26. Bf2 {[%clk 0:00:51]}  Ng3 {[%clk 0:00:17]} 27. Qd1 {[%clk 0:00:31]}  Rcd8 {[%clk 0:00:15]} 28. Nc2 {[%clk 0:00:31]}  Nf5 {[%clk 0:00:15]} 29. Ba4 {[%clk 0:00:26]}  h5 {[%clk 0:00:12]} 30. Bb3 {[%clk 0:00:26]}  Kh7 {[%clk 0:00:12]} 31. Qd3 {[%clk 0:00:25]}  Rd6 {[%clk 0:00:08]} 32. Rxd6 {[%clk 0:00:24]}  Nxd6 {[%clk 0:00:09]} 33. Qxd5 {[%clk 0:00:24]}  Nf5 {[%clk 0:00:09]} 34. Nd4 {[%clk 0:00:19]}  Rd8 {[%clk 0:00:05]} 35. Ne6 {[%clk 0:00:15]}  Rxd5 {[%clk 0:00:03]} 36. Nxg5+ {[%clk 0:00:15]}  Kh6 {[%clk 0:00:03]} 37. Nf7+ {[%clk 0:00:16]}  Kh7 {[%clk 0:00:04]} 38. Bxd5 {[%clk 0:00:17]} 1-0


[Site "https://www.chess.com"]

[Event "Titled Tuesday Blitz May 2 Late 2023"]
[White "Kramnik, Vladimir"]
[Black "Mustafayev, Farid"]
[WhiteFideId "4101588"]
[BlackFideId "13408771"]
[WhiteElo "2712"]
[BlackElo "2237"]
[Result "1-0"]
[Round "04"]
[TimeControl "180+2"]
[Date "2023.05.02"]
[WhiteClock "0:00:22"]
[BlackClock "0:00:09"]

1. e4 {[%clk 0:03:00]}  c5 {[%clk 0:02:59]} 2. Nf3 {[%clk 0:03:00]}  a6 {[%clk 0:03:00]} 3. c4 {[%clk 0:02:58]}  e6 {[%clk 0:02:59]} 4. d4 {[%clk 0:02:58]}  cxd4 {[%clk 0:02:59]} 5. Nxd4 {[%clk 0:02:58]}  Nf6 {[%clk 0:03:00]} 6. Nc3 {[%clk 0:02:58]}  Qc7 {[%clk 0:03:00]} 7. Be2 {[%clk 0:02:57]}  Bc5 {[%clk 0:02:57]} 8. Be3 {[%clk 0:02:52]}  d6 {[%clk 0:02:51]} 9. O-O {[%clk 0:02:52]}  Nbd7 {[%clk 0:02:48]} 10. Rc1 {[%clk 0:02:50]}  O-O {[%clk 0:02:34]} 11. Qd2 {[%clk 0:02:48]}  b6 {[%clk 0:02:29]} 12. a3 {[%clk 0:02:45]}  Bb7 {[%clk 0:02:29]} 13. f3 {[%clk 0:02:44]}  Rac8 {[%clk 0:02:04]} 14. b4 {[%clk 0:02:41]}  Bxd4 {[%clk 0:02:04]} 15. Bxd4 {[%clk 0:02:41]}  Rfd8 {[%clk 0:02:04]} 16. Rfd1 {[%clk 0:02:30]}  Qb8 {[%clk 0:02:02]} 17. Bf1 {[%clk 0:02:18]}  Ne5 {[%clk 0:01:56]} 18. Bxb6 {[%clk 0:02:07]}  Rd7 {[%clk 0:01:55]} 19. Bd4 {[%clk 0:01:55]}  Nxc4 {[%clk 0:01:53]} 20. Bxc4 {[%clk 0:01:51]}  Rxc4 {[%clk 0:01:53]} 21. Bxf6 {[%clk 0:01:48]}  gxf6 {[%clk 0:01:53]} 22. Ne2 {[%clk 0:01:45]}  Qa7+ {[%clk 0:01:36]} 23. Kh1 {[%clk 0:01:41]}  Rxc1 {[%clk 0:01:29]} 24. Qxc1 {[%clk 0:01:37]}  Qf2 {[%clk 0:01:29]} 25. Nf4 {[%clk 0:01:32]}  Qh4 {[%clk 0:01:17]} 26. g3 {[%clk 0:01:26]}  Qg5 {[%clk 0:01:16]} 27. Kg2 {[%clk 0:01:16]}  f5 {[%clk 0:01:05]} 28. h4 {[%clk 0:01:14]}  Qf6 {[%clk 0:01:01]} 29. Nh5 {[%clk 0:01:13]}  Qg6 {[%clk 0:00:59]} 30. Qg5 {[%clk 0:01:13]}  Kf8 {[%clk 0:00:51]} 31. exf5 {[%clk 0:01:05]}  exf5 {[%clk 0:00:47]} 32. Nf4 {[%clk 0:01:00]}  Qxg5 {[%clk 0:00:47]} 33. hxg5 {[%clk 0:01:00]}  Rc7 {[%clk 0:00:48]} 34. Kf2 {[%clk 0:00:46]}  Rc2+ {[%clk 0:00:47]} 35. Ke3 {[%clk 0:00:46]}  Ra2 {[%clk 0:00:43]} 36. Rd3 {[%clk 0:00:46]}  Kg7 {[%clk 0:00:31]} 37. Ne2 {[%clk 0:00:42]}  Bc8 {[%clk 0:00:21]} 38. Rc3 {[%clk 0:00:32]}  Bd7 {[%clk 0:00:20]} 39. Nd4 {[%clk 0:00:30]}  Kg6 {[%clk 0:00:21]} 40. Kf4 {[%clk 0:00:29]}  Bb5 {[%clk 0:00:20]} 41. Nxb5 {[%clk 0:00:26]}  axb5 {[%clk 0:00:20]} 42. Rd3 {[%clk 0:00:26]}  Kg7 {[%clk 0:00:14]} 43. Kxf5 {[%clk 0:00:25]}  Rf2 {[%clk 0:00:12]} 44. f4 {[%clk 0:00:24]}  Ra2 {[%clk 0:00:11]} 45. g4 {[%clk 0:00:24]}  Re2 {[%clk 0:00:07]} 46. Rxd6 {[%clk 0:00:23]}  Re3 {[%clk 0:00:08]} 47. Rd5 {[%clk 0:00:23]}  Rxa3 {[%clk 0:00:09]} 48. Rxb5 {[%clk 0:00:24]}  Re3 {[%clk 0:00:09]} 49. Re5 {[%clk 0:00:23]}  Rb3 {[%clk 0:00:09]} 50. b5 {[%clk 0:00:23]}  Rb4 {[%clk 0:00:09]} 51. Rc5 {[%clk 0:00:23]}  Rb1 {[%clk 0:00:09]} 52. Ke5 {[%clk 0:00:22]} 1-0


[Site "https://www.chess.com"]

[Event "Titled Tuesday Blitz May 2 Late 2023"]
[White "Flores, Diego"]
[Black "Nakamura, Hikaru"]
[WhiteFideId "108049"]
[BlackFideId "2016192"]
[WhiteElo "2613"]
[BlackElo "2885"]
[Result "0-1"]
[Round "04"]
[TimeControl "180+2"]
[Date "2023.05.02"]
[WhiteClock "0:00:01"]
[BlackClock "0:00:36"]

1. c4 {[%clk 0:03:00]}  Nf6 {[%clk 0:02:58]} 2. Nc3 {[%clk 0:03:00]}  e5 {[%clk 0:02:57]} 3. Nf3 {[%clk 0:03:00]}  Nc6 {[%clk 0:02:57]} 4. e3 {[%clk 0:03:00]}  Bb4 {[%clk 0:02:56]} 5. Nd5 {[%clk 0:03:01]}  Bd6 {[%clk 0:02:40]} 6. a3 {[%clk 0:02:49]}  e4 {[%clk 0:02:36]} 7. Ng1 {[%clk 0:02:45]}  O-O {[%clk 0:02:35]} 8. Qc2 {[%clk 0:02:36]}  Re8 {[%clk 0:02:33]} 9. Ne2 {[%clk 0:02:32]}  b5 {[%clk 0:02:23]} 10. Ng3 {[%clk 0:02:19]}  bxc4 {[%clk 0:02:15]} 11. Bxc4 {[%clk 0:02:18]}  Bb7 {[%clk 0:02:12]} 12. O-O {[%clk 0:02:00]}  Ne5 {[%clk 0:02:03]} 13. Nxf6+ {[%clk 0:01:39]}  Qxf6 {[%clk 0:02:04]} 14. b3 {[%clk 0:01:23]}  Qg5 {[%clk 0:01:05]} 15. Bb2 {[%clk 0:01:19]}  h5 {[%clk 0:01:05]} 16. f4 {[%clk 0:00:42]}  exf3 {[%clk 0:01:04]} 17. Qf5 {[%clk 0:00:42]}  Qxf5 {[%clk 0:00:54]} 18. Nxf5 {[%clk 0:00:42]}  fxg2 {[%clk 0:00:55]} 19. Rf2 {[%clk 0:00:36]}  Nxc4 {[%clk 0:00:49]} 20. bxc4 {[%clk 0:00:34]}  Bf8 {[%clk 0:00:50]} 21. Re1 {[%clk 0:00:07]}  Rab8 {[%clk 0:00:42]} 22. Bc3 {[%clk 0:00:05]}  f6 {[%clk 0:00:38]} 23. d3 {[%clk 0:00:04]}  Bxa3 {[%clk 0:00:37]} 24. e4 {[%clk 0:00:01]}  Bc5 {[%clk 0:00:36]} 0-1


[Site "https://www.chess.com"]

[Event "Titled Tuesday Blitz May 2 Late 2023"]
[White "Khripachenko, Alexander"]
[Black "Maghsoodloo, Parham"]
[WhiteFideId "54184975"]
[BlackFideId "12539929"]
[WhiteElo "2374"]
[BlackElo "2647"]
[Result "0-1"]
[Round "04"]
[TimeControl "180+2"]
[Date "2023.05.02"]
[WhiteClock "0:00:01"]
[BlackClock "0:00:07"]

1. e4 {[%clk 0:03:00]}  c5 {[%clk 0:02:23]} 2. Nf3 {[%clk 0:03:00]}  Nc6 {[%clk 0:02:22]} 3. d4 {[%clk 0:03:00]}  cxd4 {[%clk 0:02:23]} 4. Nxd4 {[%clk 0:03:00]}  e5 {[%clk 0:02:24]} 5. Nb5 {[%clk 0:02:59]}  d6 {[%clk 0:02:24]} 6. a4 {[%clk 0:02:50]}  Be6 {[%clk 0:02:21]} 7. N1c3 {[%clk 0:02:46]}  a6 {[%clk 0:02:10]} 8. Na3 {[%clk 0:02:44]}  Rb8 {[%clk 0:02:10]} 9. Bc4 {[%clk 0:02:42]}  Nf6 {[%clk 0:02:06]} 10. Bg5 {[%clk 0:02:41]}  Be7 {[%clk 0:02:06]} 11. Bxf6 {[%clk 0:02:40]}  Bxf6 {[%clk 0:02:06]} 12. Nd5 {[%clk 0:02:41]}  O-O {[%clk 0:01:59]} 13. c3 {[%clk 0:02:40]}  Bg5 {[%clk 0:01:59]} 14. O-O {[%clk 0:02:36]}  Kh8 {[%clk 0:01:58]} 15. Qe2 {[%clk 0:02:26]}  Ne7 {[%clk 0:01:46]} 16. Rad1 {[%clk 0:02:25]}  Rc8 {[%clk 0:01:42]} 17. Rd3 {[%clk 0:01:52]}  Ng6 {[%clk 0:01:33]} 18. g3 {[%clk 0:01:47]}  f5 {[%clk 0:01:31]} 19. Nb6 {[%clk 0:01:34]}  fxe4 {[%clk 0:01:26]} 20. Rdd1 {[%clk 0:00:59]}  Rxc4 {[%clk 0:01:05]} 21. Naxc4 {[%clk 0:00:51]}  d5 {[%clk 0:01:05]} 22. a5 {[%clk 0:00:46]}  Nf4 {[%clk 0:00:36]} 23. gxf4 {[%clk 0:00:39]}  Bxf4 {[%clk 0:00:37]} 24. f3 {[%clk 0:00:14]}  Rf6 {[%clk 0:00:20]} 25. Nxd5 {[%clk 0:00:10]}  Rg6+ {[%clk 0:00:13]} 26. Kh1 {[%clk 0:00:10]}  Bxh2 {[%clk 0:00:13]} 27. Qxh2 {[%clk 0:00:07]}  Rh6 {[%clk 0:00:14]} 28. Nde3 {[%clk 0:00:04]}  Rxh2+ {[%clk 0:00:13]} 29. Kxh2 {[%clk 0:00:05]}  Qh4+ {[%clk 0:00:14]} 30. Kg2 {[%clk 0:00:05]}  Bh3+ {[%clk 0:00:13]} 31. Kg1 {[%clk 0:00:01]}  Bxf1 {[%clk 0:00:12]} 32. Kxf1 {[%clk 0:00:01]}  exf3 {[%clk 0:00:12]} 33. Nxe5 {[%clk 0:00:01]}  Kg8 {[%clk 0:00:07]} 0-1


[Site "https://www.chess.com"]

[Event "Titled Tuesday Blitz May 2 Late 2023"]
[White "Terry, Renato"]
[Black "Mihajlov, Sebastian"]
[WhiteFideId "3803457"]
[BlackFideId "1512110"]
[WhiteElo "2575"]
[BlackElo "2478"]
[Result "1-0"]
[Round "04"]
[TimeControl "180+2"]
[Date "2023.05.02"]
[WhiteClock "0:00:35"]
[BlackClock "0:00:14"]

1. b3 {[%clk 0:03:00]}  d5 {[%clk 0:02:57]} 2. Bb2 {[%clk 0:03:01]}  Bg4 {[%clk 0:02:58]} 3. f3 {[%clk 0:03:01]}  Bh5 {[%clk 0:02:58]} 4. e4 {[%clk 0:03:00]}  dxe4 {[%clk 0:02:55]} 5. Qe2 {[%clk 0:03:01]}  Nc6 {[%clk 0:02:54]} 6. Qb5 {[%clk 0:02:58]}  e5 {[%clk 0:01:40]} 7. Qxb7 {[%clk 0:02:53]}  Nge7 {[%clk 0:01:41]} 8. Bb5 {[%clk 0:02:52]}  Kd7 {[%clk 0:01:41]} 9. fxe4 {[%clk 0:02:36]}  f6 {[%clk 0:01:34]} 10. Qa6 {[%clk 0:02:31]}  Qb8 {[%clk 0:01:17]} 11. Nc3 {[%clk 0:02:15]}  Qb6 {[%clk 0:01:16]} 12. Na4 {[%clk 0:02:10]}  Qxa6 {[%clk 0:01:10]} 13. Nc5+ {[%clk 0:02:10]}  Kd8 {[%clk 0:01:00]} 14. Nxa6 {[%clk 0:02:01]}  Nd4 {[%clk 0:00:53]} 15. Bxd4 {[%clk 0:01:52]}  exd4 {[%clk 0:00:54]} 16. Ne2 {[%clk 0:01:52]}  Bxe2 {[%clk 0:00:52]} 17. Kxe2 {[%clk 0:01:53]}  Ng6 {[%clk 0:00:52]} 18. Bc6 {[%clk 0:01:50]}  Rc8 {[%clk 0:00:48]} 19. Bb7 {[%clk 0:01:50]}  c5 {[%clk 0:00:46]} 20. Rab1 {[%clk 0:01:43]}  Bd6 {[%clk 0:00:40]} 21. b4 {[%clk 0:01:40]}  c4 {[%clk 0:00:40]} 22. Bxc8 {[%clk 0:01:16]}  Kxc8 {[%clk 0:00:41]} 23. g3 {[%clk 0:01:14]}  Re8 {[%clk 0:00:36]} 24. Kf3 {[%clk 0:01:15]}  Ne5+ {[%clk 0:00:36]} 25. Kg2 {[%clk 0:01:15]}  Kb7 {[%clk 0:00:30]} 26. Nc5+ {[%clk 0:01:10]}  Bxc5 {[%clk 0:00:31]} 27. bxc5+ {[%clk 0:01:11]}  Kc6 {[%clk 0:00:31]} 28. Rb4 {[%clk 0:01:09]}  Kxc5 {[%clk 0:00:29]} 29. Rhb1 {[%clk 0:01:09]}  Nc6 {[%clk 0:00:30]} 30. Rb5+ {[%clk 0:01:09]}  Kd6 {[%clk 0:00:31]} 31. Rd5+ {[%clk 0:01:07]}  Kc7 {[%clk 0:00:31]} 32. d3 {[%clk 0:01:07]}  a6 {[%clk 0:00:25]} 33. Rc5 {[%clk 0:01:04]}  c3 {[%clk 0:00:21]} 34. Rb4 {[%clk 0:01:00]}  Re5 {[%clk 0:00:18]} 35. Rbc4 {[%clk 0:00:57]}  Rxc5 {[%clk 0:00:13]} 36. Rxc5 {[%clk 0:00:58]}  Kd6 {[%clk 0:00:13]} 37. Rd5+ {[%clk 0:00:58]}  Ke6 {[%clk 0:00:14]} 38. a3 {[%clk 0:00:58]}  g6 {[%clk 0:00:14]} 39. g4 {[%clk 0:00:58]}  Ne5 {[%clk 0:00:13]} 40. Kg3 {[%clk 0:00:51]}  Nc6 {[%clk 0:00:14]} 41. h4 {[%clk 0:00:50]}  h6 {[%clk 0:00:14]} 42. g5 {[%clk 0:00:45]}  hxg5 {[%clk 0:00:14]} 43. hxg5 {[%clk 0:00:46]}  fxg5 {[%clk 0:00:14]} 44. Kg4 {[%clk 0:00:35]}  Ne5+ {[%clk 0:00:13]} 45. Kxg5 {[%clk 0:00:35]}  Nxd3 {[%clk 0:00:14]} 46. cxd3 {[%clk 0:00:35]} 1-0


[Site "https://www.chess.com"]